[Event "Asian Zonal-ch 3.5 Women 2019"]
[Site "Zi Bo"]
[Date "2019.09.09"]
[Round "7.9"]
[White "Yuan, Ye"]
[Black "Ha, Yihan"]
[Result "0-1"]
[ECO "D02"]
[WhiteElo "2092"]
[BlackElo "1580"]
[Annotator "NA"]
[PlyCount "202"]
[EventDate "2019.09.05"]
[EventType "swiss"]
[EventCountry "CHN"]
[SourceTitle "playchess.com"]
[Source "ChessBase"]
[SourceQuality "1"]
[TimeControl "5400+30"]

1. d4 {[%emt 0:00:00]} d5 {[%emt 0:00:00]} 2. Nf3 {[%emt 0:00:17]} Nf6 {[%emt 0:00:00]} 3. Bf4 {[%emt 0:00:06]} Bf5 {[%emt 0:01:17]} 4. e3 {[%emt 0:00:55]} e6 {[%emt 0:00:51]} 5. Nbd2 {[%emt 0:00:33]} Be7 {[%emt 0:04:26]} 6. h3 {[%emt 0:00:26]} O-O {[%emt 0:00:52]} 7. Be2 {[%emt 0:05:52]} c5 {[%emt 0:03:13]} 8. c3 {[%emt 0:00:24]} Nc6 {[%emt 0:00:36]} 9. O-O {[%emt 0:03:28]} Rc8 {[%emt 0:01:09]} 10. Bh2 {[%emt 0:09:34]} Qb6 {[%emt 0:01:59]} 11. Qb3 {[%emt 0:05:11]} Nd7 {[%emt 0:09:24]} 12. Qxb6 {[%emt 0:03:43]} Nxb6 {[%emt 0:01:07]} 13. a4 {[%emt 0:04:37]} cxd4 {[%emt 0:14:34]} 14. exd4 {[%emt 0:02:23]} Rfd8 {[%emt 0:05:52]} 15. a5 {[%emt 0:03:12]} Nd7 {[%emt 0:00:26]} 16. Ne1 {[%emt 0:09:47]} h6 {[%emt 0:02:58]} 17. Nd3 {[%emt 0:01:53]} Bf6 {[%emt 0:01:27]} 18. Rfd1 {[%emt 0:03:56]} Re8 {[%emt 0:01:21]} 19. g4 {[%emt 0:05:18]} Bh7 {[%emt 0:01:10]} 20. f4 {[%emt 0:01:34]} Be7 {[%emt 0:10:41]} 21. b4 {[%emt 0:07:18]} Bd6 {[%emt 0:04:51]} 22. Nb3 {[%emt 0:01:36]} Nf6 {[%emt 0:04:19]} 23. Nbc5 {[%emt 0:03:38]} b6 {[%emt 0:05:55]} 24. axb6 {[%emt 0:00:09]} axb6 {[%emt 0:00:05]} 25. Na4 {[%emt 0:00:51]} Rb8 {[%emt 0:01:09]} 26. Ne5 {[%emt 0:04:06]} Rec8 {[%emt 0:01:10]} 27. Rdc1 {[%emt 0:01:31]} Bxe5 {[%emt 0:01:03]} 28. dxe5 {[%emt 0:01:39]} Ne4 {[%emt 0:00:43]} 29. Bd3 {[%emt 0:07:42]} Nd2 {[%emt 0:01:31]} 30. Bxh7+ {[%emt 0:00:16]} Kxh7 {[%emt 0:00:36]} 31. Rd1 {[%emt 0:01:26]} Ne4 {[%emt 0:00:54]} 32. Rdc1 {[%emt 0:00:48]} Ne7 {[%emt 0:01:38]} 33. f5 {[%emt 0:03:59]} b5 {[%emt 0:04:14]} 34. Nc5 {[%emt 0:00:25]} Nxc5 {[%emt 0:00:33]} 35. bxc5 {[%emt 0:00:01]} Rb7 {[%emt 0:02:44]} 36. fxe6 {[%emt 0:00:34]} fxe6 {[%emt 0:00:12]} 37. Kf1 {[%emt 0:03:17]} Rxc5 {[%emt 0:00:19]} 38. Bg1 {[%emt 0:00:01]} Rc4 {[%emt 0:00:51]} 39. Ke2 {[%emt 0:01:16]} Re4+ {[%emt 0:01:27]} 40. Kd3 {[%emt 0:00:25]} Nc6 {[%emt 0:02:53]} 41. Bh2 {[%emt 0:01:47]} Nxe5+ {[%emt 0:00:58]} 42. Bxe5 {[%emt 0:00:05]} Rxe5 {[%emt 0:00:04]} 43. Re1 {[%emt 0:00:56]} Rxe1 {[%emt 0:00:28]} 44. Rxe1 {[%emt 0:00:00]} Rb6 {[%emt 0:01:31]} 45. Kd4 {[%emt 0:00:05]} Rc6 {[%emt 0:00:13]} 46. Rb1 {[%emt 0:00:07]} Rc4+ {[%emt 0:00:17]} 47. Kd3 {[%emt 0:00:13]} Kg6 {[%emt 0:02:16]} 48. Rxb5 {[%emt 0:00:06]} Kf6 {[%emt 0:02:53]} 49. Rb8 {[%emt 0:00:32]} Re4 {[%emt 0:02:22]} 50. Rf8+ {[%emt 0:01:19]} Kg5 {[%emt 0:01:24]} 51. Rf7 {[%emt 0:00:28]} g6 {[%emt 0:00:21]} 52. Rg7 {[%emt 0:00:46]} h5 {[%emt 0:01:11]} 53. gxh5 {[%emt 0:00:13]} Kxh5 {[%emt 0:00:06]} 54. Kd2 {[%emt 0:00:15]} Kg5 {[%emt 0:01:10]} 55. Rf7 {[%emt 0:00:25]} Rf4 {[%emt 0:00:43]} 56. Re7 {[%emt 0:00:18]} Kf6 {[%emt 0:00:20]} 57. Rh7 {[%emt 0:00:02]} e5 {[%emt 0:00:41]} 58. h4 {[%emt 0:01:11]} Kf5 {[%emt 0:00:26]} 59. h5 {[%emt 0:00:28]} gxh5 {[%emt 0:00:25]} 60. Rxh5+ {[%emt 0:00:03]} Ke4 {[%emt 0:00:09]} 61. Ke2 {[%emt 0:02:06]} Rg4 {[%emt 0:00:48]} 62. Rh2 {[%emt 0:00:14]} Rg3 {[%emt 0:01:03]} 63. Rh4+ {[%emt 0:00:20]} Kf5 {[%emt 0:00:05]} 64. Kd2 {[%emt 0:00:17]} e4 {[%emt 0:00:56]} 65. Rh5+ {[%emt 0:00:17]} Rg5 {[%emt 0:00:13]} 66. Rh8 {[%emt 0:00:52]} Ke5 {[%emt 0:00:20]} 67. Re8+ {[%emt 0:00:07]} Kf4 {[%emt 0:00:26]} 68. Rf8+ {[%emt 0:00:38]} Rf5 {[%emt 0:00:16]} 69. Rh8 {[%emt 0:01:16]} Kf3 {[%emt 0:01:00]} 70. Rh3+ {[%emt 0:00:29]} Kg2 {[%emt 0:00:12]} 71. Rh8 {[%emt 0:00:24]} Rf3 {[%emt 0:01:02]} 72. Rh5 {[%emt 0:02:06]} Rd3+ {[%emt 0:00:06]} 73. Ke2 {[%emt 0:00:50]} Kg3 {[%emt 0:00:10]} 74. Rg5+ {[%emt 0:01:11]} Kf4 {[%emt 0:00:08]} 75. Rh5 {[%emt 0:00:03]} Rxc3 {[%emt 0:00:24]} 76. Rxd5 {[%emt 0:00:08]} Rc2+ {[%emt 0:00:05]} 77. Kd1 {[%emt 0:01:13]} Rh2 {[%emt 0:00:33]} 78. Rd8 {[%emt 0:02:30]} Ke3 {[%emt 0:00:15]} 79. Re8 {[%emt 0:00:15]} Rh1+ {[%emt 0:01:01]} 80. Kc2 {[%emt 0:00:00]} Re1 {[%emt 0:00:15]} 81. Rh8 {[%emt 0:00:46]} Rf1 {[%emt 0:00:37]} 82. Re8 {[%emt 0:00:45]} Rf4 {[%emt 0:00:21]} 83. Kd1 {[%emt 0:00:25]} Rf2 {[%emt 0:00:55]} 84. Ra8 {[%emt 0:00:27]} Rf1+ {[%emt 0:00:09]} 85. Kc2 {[%emt 0:00:02]} Ke2 {[%emt 0:00:09]} 86. Re8 {[%emt 0:01:03]} e3 {[%emt 0:00:15]} 87. Re7 {[%emt 0:00:07]} Rf3 {[%emt 0:00:47]} 88. Re8 {[%emt 0:00:44]} Kf2 {[%emt 0:00:39]} 89. Kd1 {[%emt 0:00:13]} Rf6 {[%emt 0:00:19]} 90. Re7 {[%emt 0:00:25]} Rd6+ {[%emt 0:00:08]} 91. Kc1 {[%emt 0:00:39]} e2 {[%emt 0:00:19]} 92. Rf7+ {[%emt 0:00:04]} Ke3 {[%emt 0:00:43]} 93. Re7+ {[%emt 0:00:03]} Kd3 {[%emt 0:00:10]} 94. Re5 {[%emt 0:00:29]} Rd4 {[%emt 0:00:11]} 95. Re8 {[%emt 0:00:24]} Rc4+ {[%emt 0:00:39]} 96. Kb2 {[%emt 0:00:11]} Kd2 {[%emt 0:00:10]} 97. Rd8+ {[%emt 0:00:05]} Ke1 {[%emt 0:00:12]} 98. Re8 {[%emt 0:00:08]} Kf2 {[%emt 0:00:42]} 99. Rf8+ {[%emt 0:00:09]} Kg2 {[%emt 0:00:17]} 100. Re8 {[%emt 0:00:07]} Kf3 {[%emt 0:00:14]} 101. Rf8+ {[%emt 0:00:12]} Rf4 {[%emt 0:00:17]} 0-1

[Event "Asian Zonal-ch 3.5 Women 2019"]
[Site "Zi Bo"]
[Date "2019.09.09"]
[Round "7.10"]
[White "Xue, Yue"]
[Black "Hu, Yu A."]
[Result "0-1"]
[ECO "B47"]
[WhiteElo "1678"]
[BlackElo "2105"]
[Annotator "ChessBase"]
[PlyCount "68"]
[EventDate "2019.09.05"]
[EventType "swiss"]
[EventCountry "CHN"]
[SourceTitle "playchess.com"]
[Source "ChessBase"]
[SourceQuality "1"]
[TimeControl "5400+30"]

1. e4 {[%emt 0:00:00]} c5 {[%emt 0:02:12]} 2. Nf3 {[%emt 0:00:00]} e6 {[%emt 0:00:27]} 3. d4 {[%emt 0:01:37]} cxd4 {[%emt 0:00:09]} 4. Nxd4 {[%emt 0:00:02]} Nc6 {[%emt 0:00:54]} 5. Nc3 {[%emt 0:03:26]} Qc7 {[%emt 0:00:16]} 6. Be2 {[%emt 0:00:54]} a6 {[%emt 0:00:44]} 7. a4 {[%emt 0:03:36]} Nf6 {[%emt 0:00:34]} 8. O-O {[%emt 0:00:13]} Bb4 {[%emt 0:00:52]} 9. Qd3 {[%emt 0:04:45]} O-O {[%emt 0:03:43]} 10. Nxc6 {[%emt 0:13:01]} bxc6 {[%emt 0:08:13]} 11. Na2 {[%emt 0:05:09]} Be7 {[%emt 0:06:15]} 12. c4 {[%emt 0:03:00]} d5 {[%emt 0:06:10]} 13. Nc3 {[%emt 0:00:13]} Bb7 {[%emt 0:01:02]} 14. f4 {[%emt 0:08:57]} Rfd8 {[%emt 0:13:00]} 15. e5 {[%emt 0:01:15]} Nd7 {[%emt 0:00:24]} 16. Qh3 {[%emt 0:20:18]} Nc5 {[%emt 0:03:59]} 17. b4 {[%emt 0:00:30]} Nb3 {[%emt 0:04:01]} 18. Nxd5 {[%emt 0:02:45]} cxd5 {[%emt 0:00:19]} 19. Qxb3 {[%emt 0:00:03]} dxc4 {[%emt 0:00:20]} 20. Qxc4 {[%emt 0:04:51]} Qb6+ {[%emt 0:00:25]} 21. Kh1 {[%emt 0:00:15]} Bd5 {[%emt 0:00:13]} 22. Qc3 {[%emt 0:01:19]} Rac8 {[%emt 0:05:31]} 23. Qh3 {[%emt 0:01:56]} Rc2 {[%emt 0:01:24]} 24. Be3 {[%emt 0:01:47]} Qxb4 {[%emt 0:00:16]} 25. Bf3 {[%emt 0:00:27]} Qc3 {[%emt 0:10:21]} 26. Rac1 {[%emt 0:07:50]} Rxc1 {[%emt 0:00:55]} 27. Bxc1 {[%emt 0:00:08]} Bc4 {[%emt 0:00:11]} 28. Rg1 {[%emt 0:01:09]} Bc5 {[%emt 0:00:27]} 29. Qh4 {[%emt 0:00:03]} Rd3 {[%emt 0:01:32]} 30. Be4 {[%emt 0:04:55]} Bxg1 {[%emt 0:02:50]} 31. Bxh7+ {[%emt 0:00:15]} Kf8 {[%emt 0:00:19]} 32. Bxd3 {[%emt 0:01:04]} Qxd3 {[%emt 0:00:20]} 33. Ba3+ {[%emt 0:01:03]} Kg8 {[%emt 0:00:04]} 34. Bd6 {[%emt 0:02:08]} Bb6 {[%emt 0:00:12]} 0-1

[Event "Asian Zonal-ch 3.5 Women 2019"]
[Site "Zi Bo"]
[Date "2019.09.09"]
[Round "7.11"]
[White "Zhao, Caidi"]
[Black "Zhang, Xiao"]
[Result "0-1"]
[ECO "B15"]
[WhiteElo "1540"]
[BlackElo "2073"]
[Annotator "NA"]
[PlyCount "48"]
[EventDate "2019.09.05"]
[EventType "swiss"]
[EventCountry "CHN"]
[SourceTitle "playchess.com"]
[Source "ChessBase"]
[SourceQuality "1"]
[TimeControl "5400+30"]

1. e4 {[%emt 0:00:00]} c6 {[%emt 0:00:00]} 2. d4 {[%emt 0:00:00]} d5 {[%emt 0:00:00]} 3. Nc3 {[%emt 0:00:00]} g6 {[%emt 0:00:00]} 4. Nf3 {[%emt 0:00:16]} Bg4 {[%emt 0:00:14]} 5. Be2 {[%emt 0:02:03]} Bg7 {[%emt 0:00:16]} 6. Be3 {[%emt 0:00:24]} e6 {[%emt 0:01:21]} 7. h3 {[%emt 0:01:46]} Bxf3 {[%emt 0:00:09]} 8. Bxf3 {[%emt 0:00:08]} Nf6 {[%emt 0:00:11]} 9. Qd2 {[%emt 0:01:48]} O-O {[%emt 0:08:18]} 10. e5 {[%emt 0:03:23]} Nfd7 {[%emt 0:00:11]} 11. h4 {[%emt 0:04:31]} c5 {[%emt 0:00:14]} 12. h5 {[%emt 0:12:52]} cxd4 {[%emt 0:00:56]} 13. Bxd4 {[%emt 0:00:28]} Nxe5 {[%emt 0:02:57]} 14. hxg6 {[%emt 0:04:28]} fxg6 {[%emt 0:00:46]} 15. Bxe5 {[%emt 0:01:58]} Bxe5 {[%emt 0:00:03]} 16. Qh6 {[%emt 0:09:05]} Qe7 {[%emt 0:04:44]} 17. O-O {[%emt 0:01:30]} Nc6 {[%emt 0:03:16]} 18. Rae1 {[%emt 0:02:46]} Qg7 {[%emt 0:01:44]} 19. Qh3 {[%emt 0:01:15]} Rae8 {[%emt 0:00:36]} 20. Bg4 {[%emt 0:01:30]} Nd4 {[%emt 0:03:01]} 21. f4 {[%emt 0:03:44]} Rxf4 {[%emt 0:01:08]} 22. Rxf4 {[%emt 0:01:02]} Bxf4 {[%emt 0:00:02]} 23. Nxd5 {[%emt 0:02:32]} Be5 {[%emt 0:00:32]} 24. c3 {[%emt 0:02:08]} exd5 {[%emt 0:01:53]} 0-1

[Event "Asian Zonal-ch 3.5 Women 2019"]
[Site "Zi Bo"]
[Date "2019.09.09"]
[Round "7.12"]
[White "Wang, Yuehan"]
[Black "Cai Youyang"]
[Result "1/2-1/2"]
[ECO "B41"]
[WhiteElo "1600"]
[BlackElo "1910"]
[Annotator "NA"]
[PlyCount "105"]
[EventDate "2019.09.05"]
[EventType "swiss"]
[EventCountry "CHN"]
[SourceTitle "playchess.com"]
[Source "ChessBase"]
[SourceQuality "1"]
[TimeControl "5400+30"]

1. e4 {[%emt 0:00:00]} c5 {[%emt 0:00:00]} 2. Nf3 {[%emt 0:00:00]} a6 {[%emt 0:00:00]} 3. c4 {[%emt 0:00:00]} e6 {[%emt 0:00:03]} 4. Nc3 {[%emt 0:00:00]} Qc7 {[%emt 0:00:06]} 5. d4 {[%emt 0:01:59]} cxd4 {[%emt 0:00:07]} 6. Nxd4 {[%emt 0:00:03]} Nf6 {[%emt 0:00:07]} 7. a3 {[%emt 0:00:03]} Be7 {[%emt 0:01:25]} 8. Be2 {[%emt 0:00:54]} O-O {[%emt 0:00:14]} 9. O-O {[%emt 0:00:40]} b6 {[%emt 0:00:12]} 10. Be3 {[%emt 0:01:50]} Bb7 {[%emt 0:00:06]} 11. f3 {[%emt 0:00:05]} Bd6 {[%emt 0:24:05]} 12. g3 {[%emt 0:01:02]} Bxg3 {[%emt 0:00:45]} 13. hxg3 {[%emt 0:01:01]} Qxg3+ {[%emt 0:00:05]} 14. Kh1 {[%emt 0:00:03]} Nxe4 {[%emt 0:00:40]} 15. Nxe4 {[%emt 0:02:02]} Bxe4 {[%emt 0:00:03]} 16. Rf2 {[%emt 0:02:22]} Bg6 {[%emt 0:01:27]} 17. Rg2 {[%emt 0:00:51]} Qc7 {[%emt 0:00:33]} 18. Rc1 {[%emt 0:02:43]} d6 {[%emt 0:06:46]} 19. Bd3 {[%emt 0:03:57]} Nc6 {[%emt 0:01:18]} 20. Bxg6 {[%emt 0:05:30]} hxg6 {[%emt 0:00:06]} 21. Nb5 {[%emt 0:00:52]} Qd8 {[%emt 0:05:48]} 22. Qxd6 {[%emt 0:04:26]} axb5 {[%emt 0:01:50]} 23. Qxc6 {[%emt 0:00:06]} bxc4 {[%emt 0:00:03]} 24. Qxb6 {[%emt 0:03:45]} Qd5 {[%emt 0:00:15]} 25. Rf1 {[%emt 0:00:37]} Rfd8 {[%emt 0:00:46]} 26. Rd2 {[%emt 0:05:06]} Qh5+ {[%emt 0:00:05]} 27. Rh2 {[%emt 0:00:46]} Qf5 {[%emt 0:00:32]} 28. Qc5 {[%emt 0:03:33]} Qd3 {[%emt 0:00:33]} 29. Re1 {[%emt 0:02:10]} Rd5 {[%emt 0:02:02]} 30. Qc7 {[%emt 0:03:29]} Qf5 {[%emt 0:03:48]} 31. Qg3 {[%emt 0:01:06]} Rad8 {[%emt 0:00:20]} 32. Qh3 {[%emt 0:00:39]} Qxh3 {[%emt 0:00:04]} 33. Rxh3 {[%emt 0:00:04]} Rb8 {[%emt 0:00:13]} 34. Rh2 {[%emt 0:00:10]} Rb3 {[%emt 0:00:04]} 35. f4 {[%emt 0:01:32]} f6 {[%emt 0:04:11]} 36. Rc2 {[%emt 0:03:58]} Rdd3 {[%emt 0:00:32]} 37. Bf2 {[%emt 0:00:34]} Rf3 {[%emt 0:00:25]} 38. Re4 {[%emt 0:00:52]} c3 {[%emt 0:03:56]} 39. bxc3 {[%emt 0:00:58]} Rxa3 {[%emt 0:00:03]} 40. Bd4 {[%emt 0:03:30]} Ra6 {[%emt 0:01:31]} 41. Kg2 {[%emt 0:00:24]} Rd3 {[%emt 0:00:03]} 42. Rce2 {[%emt 0:00:54]} Kf7 {[%emt 0:00:03]} 43. R4e3 {[%emt 0:00:34]} Rd1 {[%emt 0:01:48]} 44. Re1 {[%emt 0:00:13]} Rd2+ {[%emt 0:00:05]} 45. R3e2 {[%emt 0:00:11]} Rd3 {[%emt 0:00:03]} 46. Rb1 {[%emt 0:00:22]} g5 {[%emt 0:00:16]} 47. fxg5 {[%emt 0:00:09]} e5 {[%emt 0:00:04]} 48. gxf6 {[%emt 0:08:06]} gxf6 {[%emt 0:00:03]} 49. Bxe5 {[%emt 0:06:21]} fxe5 {[%emt 0:00:03]} 50. Rxe5 {[%emt 0:00:48]} Rg6+ {[%emt 0:00:05]} 51. Kf2 {[%emt 0:00:32]} Rf6+ {[%emt 0:00:02]} 52. Ke2 {[%emt 0:00:18]} Rxc3 {[%emt 0:00:02]} 53. Rf1 {[%emt 0:03:25]} 1/2-1/2

[Event "Asian Zonal-ch 3.5 Women 2019"]
[Site "Zi Bo"]
[Date "2019.09.10"]
[Round "10.3"]
[White "Lei, Tingjie"]
[Black "Zhang, Lanlin"]
[Result "1-0"]
[ECO "D30"]
[WhiteElo "2483"]
[BlackElo "2203"]
[Annotator "RC"]
[PlyCount "79"]
[EventDate "2019.09.05"]
[EventType "swiss"]
[EventCountry "CHN"]
[SourceTitle "playchess.com"]
[Source "ChessBase"]
[SourceQuality "1"]
[TimeControl "5400+30"]

1. d4 {[%emt 0:00:00]} d5 {[%emt 0:00:00]} 2. Nf3 {[%emt 0:00:00]} Nf6 {[%emt 0:03:06]} 3. c4 {[%emt 0:00:06]} c6 {[%emt 0:00:04]} 4. e3 {[%emt 0:01:26]} e6 {[%emt 0:00:43]} 5. Nbd2 {[%emt 0:00:50]} Nbd7 {[%emt 0:01:00]} 6. b3 {[%emt 0:00:06]} Be7 {[%emt 0:08:36]} 7. Bd3 {[%emt 0:00:19]} O-O {[%emt 0:00:10]} 8. O-O {[%emt 0:00:57]} b6 {[%emt 0:01:17]} 9. Bb2 {[%emt 0:02:05]} Bb7 {[%emt 0:05:41]} 10. Qe2 {[%emt 0:03:56]} c5 {[%emt 0:01:45]} 11. cxd5 {[%emt 0:03:54]} exd5 {[%emt 0:04:05]} 12. Ne5 {[%emt 0:01:58]} Ne4 {[%emt 0:08:33]} 13. Nxe4 {[%emt 0:02:04]} dxe4 {[%emt 0:00:31]} 14. Bc4 {[%emt 0:00:03]} cxd4 {[%emt 0:03:15]} 15. Bxd4 {[%emt 0:00:20]} Nxe5 {[%emt 0:11:17]} 16. Bxe5 {[%emt 0:00:05]} Qd7 {[%emt 0:01:19]} 17. Rad1 {[%emt 0:03:54]} Qf5 {[%emt 0:01:32]} 18. Qb2 {[%emt 0:00:10]} Ba3 {[%emt 0:00:31]} 19. Qxa3 {[%emt 0:07:19]} Qxe5 {[%emt 0:00:05]} 20. Qd6 {[%emt 0:00:04]} Qa5 {[%emt 0:07:34]} 21. a4 {[%emt 0:05:32]} Ba6 {[%emt 0:07:44]} 22. Rd5 {[%emt 0:05:51]} Bxc4 {[%emt 0:00:05]} 23. Rxa5 {[%emt 0:00:05]} Bxf1 {[%emt 0:00:02]} 24. Rg5 {[%emt 0:01:00]} Bd3 {[%emt 0:01:46]} 25. h4 {[%emt 0:00:32]} Kh8 {[%emt 0:05:27]} 26. Qd4 {[%emt 0:01:51]} f6 {[%emt 0:00:32]} 27. Rd5 {[%emt 0:00:02]} Rab8 {[%emt 0:01:45]} 28. g4 {[%emt 0:01:14]} a6 {[%emt 0:01:24]} 29. g5 {[%emt 0:00:32]} b5 {[%emt 0:00:07]} 30. a5 {[%emt 0:00:26]} Rbc8 {[%emt 0:00:23]} 31. gxf6 {[%emt 0:01:08]} gxf6 {[%emt 0:00:07]} 32. Rd6 {[%emt 0:01:21]} Kg7 {[%emt 0:00:19]} 33. Rd7+ {[%emt 0:00:11]} Kg6 {[%emt 0:01:01]} 34. Qd6 {[%emt 0:00:33]} Rg8 {[%emt 0:00:23]} 35. Kh2 {[%emt 0:00:49]} Rcf8 {[%emt 0:00:44]} 36. Qe7 {[%emt 0:02:56]} Kf5 {[%emt 0:00:54]} 37. Qxh7+ {[%emt 0:00:25]} Ke6 {[%emt 0:00:04]} 38. Rc7 {[%emt 0:01:58]} Ke5 {[%emt 0:00:50]} 39. Qe7+ {[%emt 0:00:09]} Kf5 {[%emt 0:00:05]} 40. Qd7+ {[%emt 0:00:04]} 1-0

[Event "Asian Zonal-ch 3.5 Women 2019"]
[Site "Zi Bo"]
[Date "2019.09.10"]
[Round "10.4"]
[White "Zhai, Mo"]
[Black "Li, Xueyi"]
[Result "1-0"]
[ECO "D11"]
[WhiteElo "2360"]
[BlackElo "2323"]
[Annotator "NA"]
[PlyCount "89"]
[EventDate "2019.09.05"]
[EventType "swiss"]
[EventCountry "CHN"]
[SourceTitle "playchess.com"]
[Source "ChessBase"]
[SourceQuality "1"]
[TimeControl "5400+30"]

1. d4 {[%emt 0:01:20]} d5 {[%emt 0:00:00]} 2. c4 {[%emt 0:01:22]} c6 {[%emt 0:00:00]} 3. Nf3 {[%emt 0:00:29]} Nf6 {[%emt 0:00:00]} 4. Qc2 {[%emt 0:01:40]} g6 {[%emt 0:00:18]} 5. Bf4 {[%emt 0:00:50]} Bg7 {[%emt 0:00:28]} 6. e3 {[%emt 0:00:30]} O-O {[%emt 0:02:44]} 7. Nbd2 {[%emt 0:08:57] D11: Slav Defence: 3 Nf3 sidelines and 3...Nf6 4 e3 Bg4} (7. cxd5 Bf5 8. Qb3 Bxb1 9. Rxb1 Qa5+ 10. Nd2 Nxd5 11. Bg3 e5 12. dxe5 Nd7 13. Qa3 Qxa3 14. bxa3 b5 {0-1 (57) Romanov,E (2611)-Saric,I (2689) Biograd 2018}) 7... Bf5 {[%emt 0:04:02]} 8. Qb3 {[%emt 0:00:26]} b6 {[%emt 0:07:42]} (8... Qb6 $11 {remains equal.}) 9. cxd5 {[%emt 0:11:23]} Qxd5 $146 {[%emt 0:22:54]} ({Predecessor:} 9... cxd5 10. Rc1 Nbd7 11. Ba6 {1-0 (11) Chiong Zacarias,R (2387)-Yee,L (2084) North Bay 1999}) 10. Bc4 {[%emt 0:01:09]} Qd8 {[%emt 0:03:09]} 11. O-O {[%emt 0:08:30]} b5 {[%emt 0:02:21]} 12. Be2 {[%emt 0:01:02]} Nbd7 {[%emt 0:04:29]} 13. h3 {[%emt 0:14:24]} Ne4 {[%emt 0:05:25]} 14. Rfd1 {[%emt 0:03:33]} a6 {[%emt 0:05:13]} 15. Nxe4 {[%emt 0:07:27]} Bxe4 {[%emt 0:00:06]} 16. Ng5 {[%emt 0:00:37]} Bd5 {[%emt 0:00:30]} 17. Qc2 {[%emt 0:00:22]} h6 {[%emt 0:02:24]} 18. Nf3 {[%emt 0:02:14]} Rc8 {[%emt 0:09:05]} (18... f5 $14) 19. e4 {[%emt 0:03:44]} Be6 {[%emt 0:00:07]} 20. Rac1 {[%emt 0:04:24]} Qa5 {[%emt 0:01:15]} 21. b3 {[%emt 0:00:52]} Qa3 {[%emt 0:06:19]} 22. Qd2 {[%emt 0:04:01]} Kh7 {[%emt 0:06:10]} 23. Ne1 {[%emt 0:02:35]} b4 $18 {[%emt 0:06:57]} (23... Rfd8 $16 {was worth a try.}) 24. Nc2 {[%emt 0:13:41]} Qxa2 {[%emt 0:02:35]} 25. Nxb4 {[%emt 0:00:12]} Qxd2 {[%emt 0:00:33]} 26. Rxd2 {[%emt 0:00:02]} Bxb3 {[%emt 0:04:08]} 27. Bxa6 {[%emt 0:00:17]} Rce8 {[%emt 0:01:44]} 28. Nxc6 {[%emt 0:01:08]} e5 {[%emt 0:00:22]} 29. Bg3 {[%emt 0:00:57]} exd4 {[%emt 0:01:48]} 30. Nxd4 {[%emt 0:00:15]} Bxd4 {[%emt 0:00:49]} 31. Rxd4 {[%emt 0:00:03]} Nf6 {[%emt 0:00:47]} 32. Bb7 {[%emt 0:02:28]} Rd8 {[%emt 0:00:40]} 33. Be5 {[%emt 0:00:28]} Rxd4 {[%emt 0:00:42]} 34. Bxd4 {[%emt 0:00:02]} Rb8 {[%emt 0:00:41]} 35. Bc6 {[%emt 0:00:51]} Rc8 {[%emt 0:00:15]} 36. Rc3 {[%emt 0:00:56]} Rxc6 {[%emt 0:00:39]} 37. Rxc6 {[%emt 0:00:11]} Nxe4 {[%emt 0:00:01]} 38. h4 {[%emt 0:01:24]} h5 {[%emt 0:00:25]} 39. Rc8 {[%emt 0:00:15]} g5 {[%emt 0:00:09]} 40. Rh8+ {[%emt 0:00:29]} Kg6 {[%emt 0:00:07]} 41. Rg8+ {[%emt 0:00:07]} Kh7 {[%emt 0:00:31]} 42. Rg7+ {[%emt 0:01:06]} Kh6 {[%emt 0:00:15]} 43. f3 {[%emt 0:00:10]} f6 {[%emt 0:00:12]} 44. Rb7 {[%emt 0:01:08]} Bd5 {[%emt 0:00:21]} 45. Rd7 {[%emt 0:00:11]} 1-0

[Event "Asian Zonal-ch 3.5 Women 2019"]
[Site "Zi Bo"]
[Date "2019.09.10"]
[Round "10.5"]
[White "Gu, Tianlu"]
[Black "Li, Yunshan"]
[Result "0-1"]
[ECO "B11"]
[WhiteElo "2239"]
[BlackElo "2261"]
[Annotator "NA"]
[PlyCount "106"]
[EventDate "2019.09.05"]
[EventType "swiss"]
[EventCountry "CHN"]
[SourceTitle "playchess.com"]
[Source "ChessBase"]
[SourceQuality "1"]
[TimeControl "5400+30"]

1. e4 {[%emt 0:00:00]} c6 {[%emt 0:00:00]} 2. Nc3 {[%emt 0:00:04]} d5 {[%emt 0:00:00]} 3. Nf3 {[%emt 0:00:12]} dxe4 {[%emt 0:00:07]} 4. Nxe4 {[%emt 0:00:07]} Nf6 {[%emt 0:00:13]} 5. Qe2 {[%emt 0:00:08]} Nxe4 {[%emt 0:00:25]} 6. Qxe4 {[%emt 0:00:07]} Qd5 {[%emt 0:02:48] B11: Caro-Kann: Two Knights Variation} (6... Qa5 7. Bd3 Na6 8. Qe5 Qxe5+ 9. Nxe5 Nb4 10. Be4 f6 11. c3 Nd5 12. Nf3 a5 13. d4 a4 14. Bd2 {½-½ (41) Adams,M (2703)-Howell,D (2696) London 2018}) 7. Qf4 {[%emt 0:00:08]} Qf5 {[%emt 0:00:49]} 8. d3 {[%emt 0:00:10]} Qxf4 {[%emt 0:03:30]} 9. Bxf4 {[%emt 0:00:07]} g6 $146 {[%emt 0:15:20]} ({Predecessor:} 9... f6 10. O-O-O e5 11. Be3 c5 12. Nd2 Nc6 13. g3 Bd7 14. Bg2 {0-1 (78) Popov,I (2588)-Swapnil,S (2487) New Delhi 2019}) 10. Be2 {[%emt 0:00:34]} Bg7 {[%emt 0:00:19]} 11. O-O-O {[%emt 0:00:17]} Nd7 {[%emt 0:01:42]} 12. Rhe1 {[%emt 0:00:48]} O-O {[%emt 0:01:42]} 13. Bf1 {[%emt 0:05:58]} Re8 {[%emt 0:00:42]} 14. h3 {[%emt 0:01:22]} Nb6 {[%emt 0:06:51]} 15. Kb1 {[%emt 0:01:57]} h6 {[%emt 0:00:55]} 16. Be5 {[%emt 0:07:50]} Bd7 {[%emt 0:03:40]} 17. Bxg7 {[%emt 0:01:58]} Kxg7 {[%emt 0:00:04]} 18. Ne5 {[%emt 0:00:22]} Be6 {[%emt 0:00:48]} 19. f4 {[%emt 0:01:34]} Nd5 {[%emt 0:02:39]} 20. g3 {[%emt 0:02:03]} h5 {[%emt 0:02:33]} 21. Bg2 {[%emt 0:01:52]} Rad8 {[%emt 0:06:08]} 22. c4 {[%emt 0:05:59]} Nf6 {[%emt 0:04:32]} 23. Kc2 {[%emt 0:02:03]} Rd4 {[%emt 0:05:15]} 24. Kc3 {[%emt 0:05:51]} Red8 {[%emt 0:06:06] [#]} 25. Nf3 {[%emt 0:00:44]} ({White should play} 25. Bxc6 $1 $14 {[%mdl 512]} bxc6 26. Nxc6 {[%mdl 64] Double Attack}) 25... R4d6 {[%emt 0:05:24]} 26. d4 {[%emt 0:05:19]} b5 {[%emt 0:08:43]} 27. b3 {[%emt 0:07:39]} bxc4 {[%emt 0:01:55]} 28. bxc4 {[%emt 0:00:05]} c5 {[%emt 0:00:42]} 29. d5 {[%emt 0:07:27]} Bf5 {[%emt 0:00:45]} 30. g4 {[%emt 0:12:26]} ({Of course not} 30. Rxe7 Ne4+ 31. Rxe4 Bxe4 $19) (30. Nh4 $15) 30... hxg4 {[%emt 0:00:24]} 31. hxg4 {[%emt 0:00:04]} Nxg4 {[%emt 0:06:26]} ({Don't play} 31... Bxg4 32. Rxe7 Ra6 33. Rb1 $15) 32. Rxe7 {[%emt 0:02:09]} Nf2 {[%emt 0:00:18]} 33. Rde1 {[%emt 0:01:14]} Nd3 {[%emt 0:00:34] Double Attack} 34. Rg1 {[%emt 0:01:47]} (34. Rb1 $17 Nxf4 35. Rbb7) 34... Nxf4 {[%emt 0:02:57]} 35. Nh4 {[%emt 0:01:26]} (35. Ng5 $17 R8d7 36. Ree1) 35... Kf6 $19 {[%emt 0:04:50]} 36. Re3 {[%emt 0:02:22]} Ra6 {[%emt 0:00:55]} 37. Nxf5 {[%emt 0:04:09]} gxf5 {[%emt 0:02:04]} 38. Bf3 {[%emt 0:03:44]} Ra3+ {[%emt 0:00:13]} 39. Kd2 {[%emt 0:00:07]} Rxa2+ {[%emt 0:00:05]} 40. Kc3 {[%emt 0:01:19]} Rb8 {[%emt 0:00:40]} 41. Rge1 {[%emt 0:00:47]} Rab2 {[%emt 0:03:59]} 42. Bd1 {[%emt 0:00:22]} Ng2 {[%emt 0:00:42]} 43. R3e2 {[%emt 0:00:28]} Nxe1 {[%emt 0:00:12]} 44. Rxb2 {[%emt 0:00:04]} Rxb2 {[%emt 0:00:02]} 45. Kxb2 {[%emt 0:00:06]} Nd3+ {[%emt 0:02:00]} 46. Kc3 {[%emt 0:00:09]} Nf2 {[%emt 0:00:10]} 47. Bf3 {[%emt 0:01:34]} Ne4+ {[%emt 0:00:28]} 48. Kd3 {[%emt 0:00:11]} Ke5 {[%emt 0:00:06]} 49. Be2 {[%emt 0:01:35]} Kf4 {[%emt 0:00:20]} 50. Bh5 {[%emt 0:00:18]} Nd6 {[%emt 0:00:08]} 51. Ke2 {[%emt 0:01:30]} Ke4 {[%emt 0:00:20]} 52. Kf2 {[%emt 0:00:24]} Kd4 {[%emt 0:00:55]} 53. Be2 {[%emt 0:00:08]} a5 {[%emt 0:00:40]} 0-1